Cogmind - Beta 13 @@@ ROGUE MODE // 2024.02.27 @ 11:06:08 Player: Kaz Result: Destroyed by S-10 Pest with Light Assault Rifle Performance ------------- Evolutions (0) 0 Regions Visited (1) 200 Robots Destroyed (30) 150 Value Destroyed (581) 581 Prototype IDs (0) 0 Alien Tech Used (0) 0 Bonus (0) 0 TOTAL SCORE: 931 Bonus ------- None Cogmind --------- Core Integrity 0/250 Matter 281/300 Energy 250/250 System Corruption 0% Temperature Cool (0) Movement Rolling (105) Ox1 Location -10/Materials Parts ------- > --- POWER (1) -------- Ion Engine > --- PROPULSION (2) --- Wheel Compact Wheel > --- UTILITY (2) ------ High-capacity Storage Unit Propulsion Shielding > --- WEAPON (2) ------- Light Assault Rifle Light Assault Rifle > --- INVENTORY (20) --- Ion Engine Light Ion Engine Light Ion Engine Wheel High-capacity Storage Unit High-capacity Storage Unit Huge Storage Unit Large Matter Pod (150) High-capacity Matter Pod (200) Small Laser Small Laser Assault Rifle Assault Rifle Assault Rifle Assault Rifle Assault Rifle Assault Rifle Peak State ------------ > --- POWER ------------ Light Ion Engine > --- PROPULSION ------- Wheel Wheel > --- UTILITY ---------- High-capacity Storage Unit Propulsion Shielding > --- WEAPON ----------- Small Laser Assault Rifle > --- INVENTORY -------- Light Ion Engine Wheel Wheel Compact Wheel Small Storage Unit Small Storage Unit Small Laser Light Assault Rifle Light Assault Rifle Light Assault Rifle [Rating: 8] Favorites ----------- Power Light Ion Engine Engine Light Ion Engine Propulsion Wheel Wheel Wheel Utility High-capacity Storage Unit Storage High-capacity Storage Unit Protection Propulsion Shielding Weapon Light Assault Rifle Energy Gun Small Laser Ballistic Gun Light Assault Rifle Build | -11 -10 ------- Run | Yrd Mat Slots Evolved . | . . Power . | . . Propulsion . | . . Utility . | . . Weapon . | . . Parts Attached 24 | 7 17 Power 4 | 1 3 Engine 4 | 1 3 Core . | . . Reactor . | . . Propulsion 7 | 2 5 Treads . | . . Leg . | . . Wheel 7 | 2 5 Hover . | . . Flight . | . . Utility 7 | 2 5 Device . | . . Storage 5 | 2 3 Processor . | . . Hackware . | . . Protection 2 | . 2 Artifact . | . . Weapon 6 | 2 4 Energy Gun 1 | 1 . Energy Cannon . | . . Ballistic Gun 5 | 1 4 Ballistic Cannon . | . . Launcher . | . . Special Weapon . | . . Impact Weapon . | . . Slashing Weapon . | . . Piercing Weapon . | . . Special Melee Weapon . | . . Unidentified Prototypes . | . . Parts Lost 7 | . 7 Power 1 | . 1 Propulsion 4 | . 4 Utility 1 | . 1 Weapon 1 | . 1 Highest Loss Streak 3 | . 3 To Critical Strikes . | . . Average Slot Usage (%) 98 | . 98 Engine 13 | . 13 Wheel 26 | . 26 Storage 14 | . 14 Protection 13 | . 13 Energy Gun 3 | . 3 Ballistic Gun 24 | . 24 Naked Turns . | . . Heaviest Build 49 | 16 49 Greatest Support 26 | 20 26 Greatest Overweight (x) 4 | 1 4 Average Overweight (x) 1 | . 1 Largest Inventory Capacity 25 | 8 25 Average Capacity 18 | 7 19 Most Carried 19 | 5 19 Average Carried 12 | 2 13 Final Capacity 20 | 8 20 Final Carried 17 | 5 17 Class Distribution -------------------- 100% | Mutant Dominant Class ---------------- Mutant | -10/Materials Resources | -11 -10 ----------- Run | Yrd Mat Matter Collected 1040 | 297 743 Remotely . | . . Salvage Created 947 | 122 825 Parts 74 | 10 64 Haulers Intercepted 2 | . 2 Recyclers Shooed . | . . Parts Field Recycled . | . . Retrieved Matter . | . . Parts Self-Destructed . | . . Prevented . | . . Kills | -11 -10 ------- Run | Yrd Mat Combat Hostiles Destroyed 20 | . 20 Guns 20 | . 20 Classes Destroyed 8 | 2 6 Worker 1 | . 1 Builder 1 | . 1 Tunneler 3 | 3 . Hauler 2 | . 2 Recycler 1 | 1 . Watcher 2 | . 2 Swarmer 7 | . 7 Grunt 13 | . 13 Best Kill Streak 3 | 3 3 Combat Bots Only 3 | . 3 Max Kills in Single Turn 2 | 1 2 Gunslinging 1 | . 1 Exploded . | . . Melee . | . . Uniques/NPCs Destroyed . | . . Combat | -11 -10 -------- Run | Yrd Mat Hostile Shots Fired 131 | . 131 Missed 30 | . 30 Damage Taken 978 | . 978 Core 255 | . 255 Absorbed by Shields . | . . Redirected to Shielding 68 | . 68 Core Remaining (%) 100 | 100 . Volleys Fired 106 | 9 97 Largest 2 | 2 2 Hottest 60 | 60 60 Shots Fired 206 | 18 188 Gun 206 | 18 188 Cannon . | . . Launcher . | . . Special . | . . Kinetic 182 | 9 173 Thermal 24 | 9 15 Explosive . | . . Electromagnetic . | . . Robot Hit Streak 11 | 4 11 Robot Miss Streak 6 | 2 6 Penetration Max . | . . Secondary Targets 5 | . 5 Max Gunslinging Chain 1 | . 1 Shots Hit Robots 116 | 9 107 Core Hits 55 | 5 50 Critical Kills . | . . Critical Parts Destroyed . | . . Critical Strikes . | . . Melee Attacks . | . . Impact . | . . Slashing . | . . Piercing . | . . Sneak Attacks . | . . Combat Hostiles . | . . Follow-up Attacks . | . . Damage Inflicted 1226 | 120 1106 Guns 1226 | 120 1106 Cannons . | . . Explosions . | . . Melee . | . . Ramming . | . . Kinetic 1101 | 66 1035 Thermal 125 | 54 71 Explosive . | . . Electromagnetic . | . . Impact . | . . Slashing . | . . Piercing . | . . Highest Corruption . | . . Average Corruption . | . . Corruption Purged . | . . Corruption Blocked . | . . Overload Shots . | . . Overflow Damage . | . . Projectiles . | . . Explosions . | . . Melee . | . . Knockbacks . | . . Impact . | . . Kinetic . | . . Secondary . | . . Self-Inflicted Damage . | . . Shots . | . . Rammed . | . . Targets Rammed . | . . Kicked . | . . Crushed . | . . Highest Temperature 30 | . 30 Average Temperature 10 | . 10 Received Heat Transfer 336 | . 336 Siege Activations . | . . Robots Corrupted . | . . Combat Hostiles . | . . Parts Fried . | . . Impact Corruptions . | . . Robots Melted . | . . Combat Hostiles . | . . Parts Melted . | . . Heat Transferred 275 | 125 150 Parts Sabotaged . | . . Parts Stolen . | . . Parts Stripped . | . . Power Chain Reactions . | . . Alert | -11 -10 ------- Run | Yrd Mat Peak Influence 245 | 20 245 Initial 13 | . 13 Average 130 | 6 141 Maximum Alert Level 1 | . 1 Low Security (%) 81 | 100 80 Level 1 18 | . 19 Level 2 . | . . Level 3 . | . . Level 4 . | . . Level 5 . | . . High Security . | . . Max Security . | . . Squads Dispatched 4 | . 4 Investigation 3 | . 3 Extermination . | . . Reinforcement 1 | . 1 Assault . | . . Garrison . | . . Intercept . | . . Searches Triggered . | . . Construction Impeded . | . . Haulers Reinforced . | . . Active Scanning Responses . | . . Cargo Convoy Interrupts . | . . Stealth | -11 -10 --------- Run | Yrd Mat Distress Signals . | . . Communications Jammed . | . . Distress Signals . | . . Times Spotted 35 | . 35 Peak Tracking Total 3 | . 3 Tactical Retreats 1 | . 1 Traps | -11 -10 ------- Run | Yrd Mat Traps Triggered 4 | . 4 Indirectly . | . . Trap Hack Attempts . | . . Triggered . | . . Disarmed . | . . Reprogrammed . | . . Reused . | . . Traps Extracted . | . . Installed . | . . Triggered . | . . Machines | -11 -10 ---------- Run | Yrd Mat Machines Disabled . | . . Max in Single Turn . | . . Machines Repaired . | . . Machines Dismantled . | . . Machines Sabotaged . | . . Overloaded Fab Kills . | . . Hacking | -11 -10 --------- Run | Yrd Mat Machines Accessed 4 | . 4 Terminals 2 | . 2 Fabricators . | . . Repair Stations 1 | . 1 Recycling Units 1 | . 1 Scanalyzers . | . . Garrison Access . | . . Total Hacks 10 | . 10 Successful 7 | . 7 Failed 3 | . 3 Catastrophic . | . . Database Lockouts . | . . Manual . | . . Terminals 6 | . 6 Fabricators . | . . Repair Stations 3 | . 3 Recycling Units 1 | . 1 Scanalyzers . | . . Garrison Access . | . . Terminal Hacks 5 | . 5 Record 1 | . 1 Emergency Access Points 2 | . 2 Locate Traps 1 | . 1 Hauler Manifests 1 | . 1 Fabricator Hacks . | . . Repair Station Hacks 2 | . 2 Scan Component 2 | . 2 Recycling Unit Hacks . | . . Scanalyzer . | . . Garrison Access Hacks . | . . Unauthorized Hacks . | . . Terminals . | . . Fabricators . | . . Repair Stations . | . . Recycling Units . | . . Scanalyzers . | . . Garrison Access . | . . Data Cores Recovered . | . . Used . | . . Hacking Detections 2 | . 2 Full Trace Events 2 | . 2 Feedback Events . | . . Feedback Blocked . | . . Robot Schematics Acquired . | . . Robots Built . | . . Authchips . | . . Time . | . . Total Robot Build Rating . | . . Part Schematics Acquired . | . . Parts Built . | . . Authchips . | . . Time . | . . Total Part Build Rating . | . . Parts Repaired . | . . Time . | . . Parts Recycled . | . . Recycled Matter . | . . Retrieved Matter . | . . Retrieved Components . | . . Parts Scanalyzed . | . . Part Schematics Acquired . | . . Parts Damaged . | . . Bothacking | -11 -10 ------------ Run | Yrd Mat Used RIF Installer . | . . Robots Hacked . | . . Non-combat . | . . Combat . | . . Robot Hacks Applied . | . . Relay Couplers Released . | . . Fabnet Peak Effective % . | . . Robots Rewired . | . . Allies Hacked . | . . Hacks Repelled . | . . Allies | -11 -10 -------- Run | Yrd Mat Total Allies . | . . Largest Group . | . . Highest-Rated Group . | . . Highest-Rated Ally . | . . Total Orders . | . . Ally Attacks . | . . Total Damage . | . . Kills . | . . Allies Corrupted . | . . Allies Melted . | . . Intel | -11 -10 ------- Run | Yrd Mat Robot Analysis Total . | . . Derelict Logs Recovered . | . . Drone Launches . | . . Drone Recoveries . | . . Exploration | -11 -10 ------------- Run | Yrd Mat Turns Passed 1222 | 96 1126 Spaces Moved 783 | 64 719 Core 6 | 6 . Treads . | . . Legs . | . . Wheels 777 | 58 719 Hover . | . . Flight . | . . Fastest Speed 50 | 50 80 Average Speed 104 | 77 107 Slowest Speed 140 | 100 140 Overloaded Moves . | . . Propulsion Burnouts . | . . Robots Hopped . | . . Cave-ins Triggered . | . . Exploration Rate (%) 47 | 3 92 Regions Visited 1 Branch Regions . Pre-discovered Areas . | . . Known Exits Taken . | . . Unknown Exits Taken 1 | 1 . Scrap Searched . | . . Spaces Dug . | . . Terrain Destroyed . | . . Melee . | . . Projectile . | . . AOE . | . . Terrain Rammed . | . . Walls Destroyed . | . . Machines Disabled . | . . Actions | -11 -10 --------- Run | Yrd Mat Total 1004 | 91 913 Wait 41 | . 41 Move 782 | 63 719 Hop . | . . Pick Up 43 | 12 31 Fast Attach . | . . Attach 18 | 7 11 Detach . | . . Swap 6 | . 6 Drop 8 | . 8 Fire 106 | 9 97 Melee . | . . Ram . | . . Kick . | . . Crush . | . . Escape Stasis . | . . Rewire . | . . Trap . | . . Miscellaneous . | . . Route ------- -11/Scrapyard -10/Materials (discovered 3 exits: [*Mat x3]) History --------- Turn | Location | Event 11 | -11/Scrapyard | Discovered new exit (range 14) 97 | -11/Scrapyard | Entered Materials 311 | -10/Materials | Build established: Mutant 402 | -10/Materials | Discovered new exit (range 8) 594 | -10/Materials | Discovered new exit (range 8) 811 | -10/Materials | Lost 3 parts (2n1w) 827 | -10/Materials | Discovered new exit (range 16) 914 | -10/Materials | Core integrity fell below 50% 927 | -10/Materials | Core integrity fell below 20% 1223 | -10/Materials | Destroyed by S-10 Pest with Light Assault Rifle Last Messages --------------- 01001_ Acquired 49 matter. 01053_ Wheel destroyed. 01064_ G-34 Mercenary destroyed. 01068_ Acquired 38 matter. 01077_ Wheel destroyed. 01089_ G-34 Mercenary destroyed. 01123_ A-02 Transporter destroyed. 01134_ Acquired 53 matter. 01136_ Acquired Assault Rifle. 01137_ Dropped Lgt. Assault Rifle. 01139_ Acquired Assault Rifle. 01143_ R-06 Scavenger collects Lgt. Treads. 01144_ Acquired Assault Rifle. 01159_ K-01 Serf cleans the Processing Tank. 01164_ K-01 Serf collects debris. 01176_ Acquired 19 matter. 01179_ Acquired Huge Storage Unit. 01184_ Acquired 13 matter. 01206_ R-06 Scavenger collects Aluminum Leg. 01213_ S-10 Pest destroyed. Map ----- +----------------------------------------------------+ | # #?????????????????????? | | # #???? ????????????????? | | !! ########## ######+####??? #??????????????? | | !! # # #### ##### #??^^??????????? | | !! # """ # +?????^????????? | | # """ + T #????^?????????? | | # """ # #^?????????????? | | + ###### #??????????????? | | ##########????###### #????^?????????? | | ###+#####????????######## #??????????????? | | #????????# # #??????????????? | | """ #????????# """ # #??????????????? | | """ #????????# "Y" # ######??????????????? | | """ #????????# # #???????????????????? | | ! #????????# // + ############????????? | | """ #????????# // # ## """ """ #????????? | | """ #?????######+#### ## """ """ #????????? | | """ #?????# # # """ """ #????????? | | #?????# """ # # #????????? | | #######+#?????# """ + +% #????????? | | ??????# #?????# ! """ # # #????????? | | ??????# #?????# # # #????????? | | ??????# #?????# " ### ### #????????? | | ###???# #?????# T #?#=#?###+#######????????? | | **???# ####### " ###s### #????????? | | *! ??# + # @[* # #????????? | | *! ??# ################ s# """ """ #????????? | | ## ##????### =+ + """ """ #????????? | | # #????#"" """" # # """ """ ########## | | + #????#"T """"[# # """ """ # # | | # ! #????#"" """" ### ### """ """ # """ # | | #######=##??????# ==#?# #?# # """ # | | #*#???????# = #?#%#?#######+### """ # | | """ #%#???????########?# #?????# # # | | """ +!#????????????????# #?????# =# """ =# | | """ # #??#######???????# #?????# [ + """ # | | # #### | #???????# #?????# !# """ # | | """ # #???????# #?##### # # | | """ + #???????# #?# ! ########### | | """ # #???????# #?# # # | | ###### #??????##+### * [[+ # | | """ #????## ######### # !# """ """ # | | """ #?????# # # # # """ """ # | | """ #?????# # #= # # """ """ ? | | #?????# # # # # ? | | ############# # # + ##########? | | # =# # # # ########??? | | # = !# + # # #! #??? | | # * !+ # # # # """ #??? | | # " "" # < ###### # + !=!!# """ #??? | +----------------------------------------------------+ Best States ------------- Heat Dissipation 25 Energy Generation 10 Energy Capacity 250 Matter Stores 300 Matter Capacity 300 Sight Range 16 Terrain Scan Density 10 Propulsion Shielding 33 Evasion (%) 44 Item Schematics ----------------- None Robot Schematics ------------------ None Fabricated ------------ Nothing Alien Tech Used ----------------- None Achievements -------------- None Challenges ------------ None Game ------ Seed IntegrityCouplerSplitter Manual? 0 Play Time 00:22:03 Cumulative 126.0 hours Start 2024.02.27 @ 10:20:37 End 2024.02.27 @ 11:06:08 Sessions 1 Manual Loads 0 Difficulty Rogue Special Mode None Game No. 65 Rogue 53 Adventurer 12 Explorer 0 Win Type - Total 1 Types 1/0/0/0/0/0/0/0/0 Lore% 18 Gallery% 36 Achievement% 29 Wizard Run 0 Options --------- Layout 1 ASCII 0 Keyboard 0 Movement Mouse Keybinds 0 Fullscreen 1 Font 32/SmallcapsGlow Map View 77x35 Zoom Use 0% Tactical HUD 1 Map Filters NONE Filters NONE Steam 1 RUN: 8a4879ae-0bdf-4323-9986-066c68cb3fe3